[Event "Early-Titled-Tuesday-Blitz-February-06-2024"]
[Site "Chess.com"]
[Date "2024.02.06"]
[Round "9"]
[White "Cubitas"]
[Black "Orphanator2009"]
[Result "0-1"]
[WhiteElo "2680"]
[BlackElo "2464"]
[TimeControl "180+1"]
[EndTime "9:43:10 PST"]
[Termination "Orphanator2009 won by resignation"]

1. e4 {[%clk 0:03:00.9]} 1... c5 {[%clk 0:02:59.1]} 2. Nc3 {[%clk 0:03:00.5]}
2... Nc6 {[%clk 0:02:59]} 3. f4 {[%clk 0:03:00.8]} 3... g6 {[%clk 0:02:59.2]} 4.
Nf3 {[%clk 0:03:01.4]} 4... Bg7 {[%clk 0:02:59.6]} 5. Bb5 {[%clk 0:03:02]} 5...
Nd4 {[%clk 0:02:58.9]} 6. O-O {[%clk 0:03:02.6]} 6... a6 {[%clk 0:02:57.5]} 7.
Bd3 {[%clk 0:03:02.4]} 7... e6 {[%clk 0:02:56.5]} 8. Nxd4 {[%clk 0:03:02.2]}
8... cxd4 {[%clk 0:02:56.7]} 9. Ne2 {[%clk 0:03:03.1]} 9... Ne7 {[%clk
0:02:57.2]} 10. c3 {[%clk 0:03:02.3]} 10... dxc3 {[%clk 0:02:51]} 11. dxc3
{[%clk 0:03:03.2]} 11... O-O {[%clk 0:02:50.9]} 12. f5 {[%clk 0:03:02.8]} 12...
exf5 {[%clk 0:02:50.1]} 13. exf5 {[%clk 0:03:02.8]} 13... Nxf5 {[%clk 0:02:48]}
14. Bxf5 {[%clk 0:03:01.9]} 14... gxf5 {[%clk 0:02:48.9]} 15. Ng3 {[%clk
0:03:02.1]} 15... d5 {[%clk 0:02:37.6]} 16. Qh5 {[%clk 0:03:00.9]} 16... d4
{[%clk 0:02:35.8]} 17. Bh6 {[%clk 0:02:53.1]} 17... dxc3 {[%clk 0:02:13.4]} 18.
Bxg7 {[%clk 0:02:52.9]} 18... Kxg7 {[%clk 0:02:12.4]} 19. bxc3 {[%clk
0:02:44.4]} 19... Qb6+ {[%clk 0:02:03]} 20. Kh1 {[%clk 0:02:34.8]} 20... Qg6
{[%clk 0:01:57.9]} 21. Qh4 {[%clk 0:02:29.4]} 21... Be6 {[%clk 0:01:55.1]} 22.
Nh5+ {[%clk 0:02:24.9]} 22... Kh8 {[%clk 0:01:53]} 23. Rf3 {[%clk 0:02:21.8]}
23... Rg8 {[%clk 0:01:44.2]} 24. Rg3 {[%clk 0:02:08.2]} 24... Qh6 {[%clk
0:01:40.3]} 25. Qd4+ {[%clk 0:02:08.8]} 25... f6 {[%clk 0:01:35.5]} 26. Rh3
{[%clk 0:02:05.8]} 26... f4 {[%clk 0:01:31.7]} 27. Rh4 {[%clk 0:02:02.8]} 27...
Qg5 {[%clk 0:01:26.7]} 28. Nxf4 {[%clk 0:01:40]} 28... Rad8 {[%clk 0:01:12.4]}
29. Qf2 {[%clk 0:01:35.5]} 29... Bd7 {[%clk 0:01:04.6]} 30. h3 {[%clk
0:01:28.3]} 30... Bc6 {[%clk 0:01:02.6]} 31. Kh2 {[%clk 0:01:28.7]} 31... Rde8
{[%clk 0:00:54.5]} 32. Rh5 {[%clk 0:01:00.1]} 32... Qxf4+ {[%clk 0:00:51.1]} 0-1

[Event "Early-Titled-Tuesday-Blitz-February-06-2024"]
[Site "Chess.com"]
[Date "2024.02.06"]
[Round "9"]
[White "Suleyman_Chess06"]
[Black "Hovik_Hayrapetyan"]
[Result "1-0"]
[WhiteElo "2707"]
[BlackElo "2890"]
[TimeControl "180+1"]
[EndTime "9:43:13 PST"]
[Termination "Suleyman_Chess06 won on time"]

1. Nf3 {[%clk 0:03:00.9]} 1... Nf6 {[%clk 0:02:24.8]} 2. g3 {[%clk 0:03:00.1]}
2... d5 {[%clk 0:02:16.6]} 3. Bg2 {[%clk 0:03:00.1]} 3... e6 {[%clk 0:02:16.9]}
4. O-O {[%clk 0:03:00.8]} 4... Be7 {[%clk 0:02:17.5]} 5. d4 {[%clk 0:03:01.7]}
5... O-O {[%clk 0:02:18.1]} 6. c4 {[%clk 0:03:02.6]} 6... dxc4 {[%clk 0:02:19]}
7. Qc2 {[%clk 0:03:02.7]} 7... a6 {[%clk 0:02:19.2]} 8. a4 {[%clk 0:03:03.1]}
8... Bd7 {[%clk 0:02:19.2]} 9. Bg5 {[%clk 0:03:03.8]} 9... Bc6 {[%clk
0:01:44.4]} 10. Bxf6 {[%clk 0:03:03]} 10... Bxf6 {[%clk 0:01:44.3]} 11. Nc3
{[%clk 0:03:03]} 11... Nd7 {[%clk 0:01:25.1]} 12. e4 {[%clk 0:03:00.1]} 12...
Nb8 {[%clk 0:00:34.5]} 13. Rfd1 {[%clk 0:02:57.6]} 13... h6 {[%clk 0:00:31.9]}
14. Qe2 {[%clk 0:02:54.3]} 14... a5 {[%clk 0:00:30]} 15. Qxc4 {[%clk 0:02:53.7]}
15... Na6 {[%clk 0:00:30.3]} 16. d5 {[%clk 0:02:46]} 16... exd5 {[%clk
0:00:25.9]} 17. Nxd5 {[%clk 0:02:46.3]} 17... Bxd5 {[%clk 0:00:25.6]} 18. Rxd5
{[%clk 0:02:46.1]} 18... Qe8 {[%clk 0:00:21.8]} 19. e5 {[%clk 0:02:45.7]} 19...
Be7 {[%clk 0:00:21.6]} 20. Rad1 {[%clk 0:02:44.2]} 20... c6 {[%clk 0:00:16.2]}
21. Rd7 {[%clk 0:02:43]} 21... Nc5 {[%clk 0:00:16.4]} 22. R7d2 {[%clk
0:02:38.4]} 22... Qc8 {[%clk 0:00:13.5]} 23. Nd4 {[%clk 0:02:34.1]} 23... Rd8
{[%clk 0:00:12]} 24. e6 {[%clk 0:02:30.5]} 24... Nxe6 {[%clk 0:00:08.7]} 25. Bh3
{[%clk 0:02:30.6]} 25... Kh8 {[%clk 0:00:04.6]} 26. Nxe6 {[%clk 0:02:27.2]}
26... Rxd2 {[%clk 0:00:04.6]} 27. Rxd2 {[%clk 0:02:24.5]} 27... fxe6 {[%clk
0:00:05.5]} 28. Bxe6 {[%clk 0:02:24.7]} 28... Qf8 {[%clk 0:00:06.1]} 29. Rd7
{[%clk 0:02:22]} 29... Rd8 {[%clk 0:00:05.5]} 30. Qd3 {[%clk 0:02:08.8]} 30...
Rxd7 {[%clk 0:00:03.6]} 31. Qxd7 {[%clk 0:02:08.7]} 31... Bc5 {[%clk 0:00:04.1]}
32. Bf7 {[%clk 0:02:03.6]} 32... b5 {[%clk 0:00:03.7]} 33. axb5 {[%clk
0:02:02.8]} 33... cxb5 {[%clk 0:00:04.6]} 34. Kg2 {[%clk 0:02:00.4]} 34... b4
{[%clk 0:00:03.1]} 35. f4 {[%clk 0:02:00.9]} 35... a4 {[%clk 0:00:01.7]} 36. Bd5
{[%clk 0:01:57.6]} 36... a3 {[%clk 0:00:02.1]} 37. bxa3 {[%clk 0:01:58]} 37...
bxa3 {[%clk 0:00:03]} 38. Qe6 {[%clk 0:01:54]} 1-0

[Event "Early-Titled-Tuesday-Blitz-February-06-2024"]
[Site "Chess.com"]
[Date "2024.02.06"]
[Round "9"]
[White "Gryffindorac8"]
[Black "bilosuvenosu06"]
[Result "0-1"]
[WhiteElo "2358"]
[BlackElo "2573"]
[TimeControl "180+1"]
[EndTime "9:43:20 PST"]
[Termination "bilosuvenosu06 won by checkmate"]

1. d4 {[%clk 0:03:00.9]} 1... Nf6 {[%clk 0:02:59.8]} 2. c4 {[%clk 0:03:00.6]}
2... e6 {[%clk 0:03:00.5]} 3. Nf3 {[%clk 0:03:00.6]} 3... d5 {[%clk 0:03:01.1]}
4. g3 {[%clk 0:03:01]} 4... Be7 {[%clk 0:03:01.1]} 5. Bg2 {[%clk 0:03:01.5]}
5... O-O {[%clk 0:03:01.8]} 6. O-O {[%clk 0:03:01.9]} 6... Nbd7 {[%clk
0:03:02.5]} 7. Qc2 {[%clk 0:03:02.3]} 7... c6 {[%clk 0:03:02.6]} 8. Nbd2 {[%clk
0:03:02.6]} 8... b6 {[%clk 0:03:03.3]} 9. e4 {[%clk 0:03:02.9]} 9... Bb7 {[%clk
0:03:03.7]} 10. e5 {[%clk 0:03:03.1]} 10... Ne8 {[%clk 0:03:04.4]} 11. cxd5
{[%clk 0:03:03.4]} 11... cxd5 {[%clk 0:03:04.7]} 12. Re1 {[%clk 0:03:03.8]}
12... Rc8 {[%clk 0:03:05.3]} 13. Qa4 {[%clk 0:02:59.1]} 13... a6 {[%clk
0:03:04.9]} 14. Bf1 {[%clk 0:02:57.3]} 14... b5 {[%clk 0:03:04.9]} 15. Qd1
{[%clk 0:02:57.5]} 15... Nb6 {[%clk 0:03:03.4]} 16. Bd3 {[%clk 0:02:52.4]} 16...
Nc4 {[%clk 0:03:01.3]} 17. Nf1 {[%clk 0:02:52]} 17... Na5 {[%clk 0:02:43.9]} 18.
N1d2 {[%clk 0:02:46.8]} 18... Qb6 {[%clk 0:02:42.5]} 19. h4 {[%clk 0:02:41.1]}
19... b4 {[%clk 0:02:40.7]} 20. Nf1 {[%clk 0:02:38.4]} 20... b3 {[%clk
0:02:37.5]} 21. a3 {[%clk 0:02:36.1]} 21... Nc4 {[%clk 0:02:37.3]} 22. h5 {[%clk
0:02:31.3]} 22... a5 {[%clk 0:02:34.3]} 23. N1h2 {[%clk 0:02:29.7]} 23... a4
{[%clk 0:02:17.2]} 24. h6 {[%clk 0:02:13.6]} 24... g6 {[%clk 0:02:16.8]} 25. Ng4
{[%clk 0:02:13.2]} 25... Ba6 {[%clk 0:02:15.9]} 26. Rb1 {[%clk 0:02:07.8]} 26...
Rc6 {[%clk 0:02:15]} 27. Bg5 {[%clk 0:02:03.3]} 27... Qd8 {[%clk 0:02:15.5]} 28.
Bxe7 {[%clk 0:01:51.3]} 28... Qxe7 {[%clk 0:02:16.4]} 29. Qe2 {[%clk 0:01:49.1]}
29... Bb5 {[%clk 0:02:09.3]} 30. Kg2 {[%clk 0:01:38.1]} 30... f5 {[%clk
0:01:54.6]} 31. exf6 {[%clk 0:01:32.2]} 31... Nxf6 {[%clk 0:01:54.5]} 32. Nge5
{[%clk 0:01:26.8]} 32... Nxe5 {[%clk 0:01:54.2]} 33. Nxe5 {[%clk 0:01:12.3]}
33... Bxd3 {[%clk 0:01:45.7]} 34. Nxc6 {[%clk 0:01:02.7]} 34... Qd6 {[%clk
0:01:45]} 35. Qxd3 {[%clk 0:00:53.3]} 35... Qxc6 {[%clk 0:01:45.2]} 36. Rbc1
{[%clk 0:00:48.4]} 36... Qd6 {[%clk 0:01:45.1]} 37. Re2 {[%clk 0:00:31.9]} 37...
Ne4 {[%clk 0:01:44.4]} 38. Rce1 {[%clk 0:00:26]} 38... Rc8 {[%clk 0:01:35.5]}
39. Qb5 {[%clk 0:00:22.2]} 39... Rf8 {[%clk 0:01:30.3]} 40. Qxa4 {[%clk
0:00:20.9]} 40... Rxf2+ {[%clk 0:01:28.4]} 41. Rxf2 {[%clk 0:00:20]} 41... Qxg3+
{[%clk 0:01:28.2]} 42. Kf1 {[%clk 0:00:13.6]} 42... Qxf2# {[%clk 0:01:28.2]} 0-1

[Event "Early-Titled-Tuesday-Blitz-February-06-2024"]
[Site "Chess.com"]
[Date "2024.02.06"]
[Round "9"]
[White "picturesquecheck"]
[Black "LuisFSiles"]
[Result "1-0"]
[WhiteElo "2391"]
[BlackElo "2254"]
[TimeControl "180+1"]
[EndTime "9:43:20 PST"]
[Termination "picturesquecheck won by resignation"]

1. e4 {[%clk 0:03:00.9]} 1... c5 {[%clk 0:02:59.1]} 2. Nf3 {[%clk 0:02:56.5]}
2... Nc6 {[%clk 0:02:58.5]} 3. Bb5 {[%clk 0:02:56.2]} 3... g6 {[%clk 0:02:58.3]}
4. O-O {[%clk 0:02:54.6]} 4... Bg7 {[%clk 0:02:58.4]} 5. Bxc6 {[%clk 0:02:55.1]}
5... dxc6 {[%clk 0:02:59.3]} 6. d3 {[%clk 0:02:55.6]} 6... Nf6 {[%clk
0:02:56.9]} 7. Nc3 {[%clk 0:02:56.2]} 7... Nd7 {[%clk 0:02:53.8]} 8. Be3 {[%clk
0:02:55.8]} 8... e5 {[%clk 0:02:52.8]} 9. Qd2 {[%clk 0:02:52.7]} 9... h6 {[%clk
0:02:53]} 10. Rad1 {[%clk 0:02:51.5]} 10... b6 {[%clk 0:02:44.7]} 11. Ne2 {[%clk
0:02:51.6]} 11... Nf8 {[%clk 0:02:41.2]} 12. c3 {[%clk 0:02:50.7]} 12... Ne6
{[%clk 0:02:40.7]} 13. d4 {[%clk 0:02:50.3]} 13... exd4 {[%clk 0:02:32.8]} 14.
cxd4 {[%clk 0:02:51.2]} 14... cxd4 {[%clk 0:02:32.7]} 15. Nexd4 {[%clk
0:02:49.2]} 15... Nxd4 {[%clk 0:02:26.3]} 16. Nxd4 {[%clk 0:02:34.3]} 16... Bd7
{[%clk 0:02:11]} 17. Qc2 {[%clk 0:02:34.1]} 17... Qf6 {[%clk 0:02:02.5]} 18. e5
{[%clk 0:02:29.6]} 18... Qxe5 {[%clk 0:01:46.7]} 19. Nxc6 {[%clk 0:02:03.2]}
19... Qe6 {[%clk 0:01:38.7]} 20. Nd4 {[%clk 0:01:59.3]} 20... Qe7 {[%clk
0:01:25.8]} 21. Rfe1 {[%clk 0:01:56.3]} 21... Rc8 {[%clk 0:01:13.6]} 22. Qd2
{[%clk 0:01:55.8]} 22... O-O {[%clk 0:01:10.4]} 23. Bxh6 {[%clk 0:01:52.7]}
23... Qf6 {[%clk 0:01:02.7]} 24. Bg5 {[%clk 0:01:48.1]} 24... Qxd4 {[%clk
0:00:54.3]} 25. Qxd4 {[%clk 0:01:47.8]} 25... Bxd4 {[%clk 0:00:53.9]} 26. Rxd4
{[%clk 0:01:48.7]} 26... Bf5 {[%clk 0:00:40]} 27. h3 {[%clk 0:01:46.1]} 27...
Kg7 {[%clk 0:00:35.9]} 28. Bf4 {[%clk 0:01:40]} 28... Rfe8 {[%clk 0:00:31.4]}
29. Rxe8 {[%clk 0:01:32.2]} 29... Rxe8 {[%clk 0:00:30.8]} 30. Be3 {[%clk
0:01:32.9]} 30... Rc8 {[%clk 0:00:29.9]} 31. Rd2 {[%clk 0:01:18.6]} 31... Rc2
{[%clk 0:00:29.7]} 32. Rd6 {[%clk 0:01:10.3]} 32... f6 {[%clk 0:00:24.3]} 33.
Bd4 {[%clk 0:01:09.1]} 33... Rd2 {[%clk 0:00:11.9]} 34. Bxf6+ {[%clk 0:01:08]}
1-0

[Event "Early-Titled-Tuesday-Blitz-February-06-2024"]
[Site "Chess.com"]
[Date "2024.02.06"]
[Round "9"]
[White "Flameboard08"]
[Black "cthulhuuu"]
[Result "1-0"]
[WhiteElo "2572"]
[BlackElo "2400"]
[TimeControl "180+1"]
[EndTime "9:43:21 PST"]
[Termination "Flameboard08 won by resignation"]

1. f4 {[%clk 0:03:00.9]} 1... d5 {[%clk 0:02:57]} 2. Nf3 {[%clk 0:03:00.1]} 2...
Nf6 {[%clk 0:02:57.3]} 3. d3 {[%clk 0:02:59.4]} 3... c5 {[%clk 0:02:51.8]} 4. g3
{[%clk 0:02:58.9]} 4... Nc6 {[%clk 0:02:51.4]} 5. Bg2 {[%clk 0:02:58.4]} 5... b5
{[%clk 0:02:49.3]} 6. O-O {[%clk 0:02:57.2]} 6... Bb7 {[%clk 0:02:49.5]} 7. Nbd2
{[%clk 0:02:56.5]} 7... e6 {[%clk 0:02:49.6]} 8. e4 {[%clk 0:02:55.8]} 8... dxe4
{[%clk 0:02:46.5]} 9. dxe4 {[%clk 0:02:55.8]} 9... Nd4 {[%clk 0:02:44.3]} 10.
Re1 {[%clk 0:02:39.7]} 10... c4 {[%clk 0:02:33.1]} 11. c3 {[%clk 0:02:31.2]}
11... Nxf3+ {[%clk 0:02:28.6]} 12. Qxf3 {[%clk 0:02:32.1]} 12... Bc5+ {[%clk
0:02:10.3]} 13. Kh1 {[%clk 0:02:29.9]} 13... O-O {[%clk 0:02:10.6]} 14. a4
{[%clk 0:02:28.6]} 14... a6 {[%clk 0:02:09.4]} 15. b3 {[%clk 0:02:23.2]} 15...
cxb3 {[%clk 0:02:00.5]} 16. Nxb3 {[%clk 0:02:24.1]} 16... Nxe4 {[%clk
0:01:53.6]} 17. Be3 {[%clk 0:02:00.1]} 17... Qd3 {[%clk 0:01:05.2]} 18. Bxc5
{[%clk 0:01:51.1]} 18... Qxf3 {[%clk 0:01:04.6]} 19. Bxf3 {[%clk 0:01:48.6]}
19... Nxc5 {[%clk 0:01:04.3]} 20. Nxc5 {[%clk 0:01:43.1]} 20... Bxf3+ {[%clk
0:01:03.8]} 21. Kg1 {[%clk 0:01:43.6]} 21... Rfc8 {[%clk 0:01:01.2]} 22. Nb3
{[%clk 0:01:37.8]} 22... Rxc3 {[%clk 0:00:59.9]} 23. Nd4 {[%clk 0:01:36.6]}
23... b4 {[%clk 0:00:57.3]} 24. a5 {[%clk 0:01:36.2]} 24... Bd5 {[%clk
0:00:56.8]} 25. Rab1 {[%clk 0:01:34.6]} 25... Rb8 {[%clk 0:00:55.7]} 26. Rb2
{[%clk 0:01:34.9]} 26... b3 {[%clk 0:00:54.9]} 27. Reb1 {[%clk 0:01:35.5]} 27...
Rb4 {[%clk 0:00:53.5]} 28. Ne2 {[%clk 0:01:34.4]} 28... Rc2 {[%clk 0:00:50.3]}
29. Rxc2 {[%clk 0:01:33.9]} 29... Rb8 {[%clk 0:00:20.4]} 30. Rcb2 {[%clk
0:01:29.4]} 30... h5 {[%clk 0:00:17.5]} 31. Kf2 {[%clk 0:01:28.3]} 31... Rb5
{[%clk 0:00:16.7]} 32. Nc3 {[%clk 0:01:27.8]} 32... Rxa5 {[%clk 0:00:14.5]} 33.
Nxd5 {[%clk 0:01:28.1]} 33... Rxd5 {[%clk 0:00:14.7]} 34. Ke3 {[%clk 0:01:28.3]}
34... h4 {[%clk 0:00:09.6]} 35. Rxb3 {[%clk 0:01:28.1]} 35... hxg3 {[%clk
0:00:09.6]} 36. hxg3 {[%clk 0:01:29]} 36... a5 {[%clk 0:00:09.4]} 37. Rb5 {[%clk
0:01:28.9]} 1-0

[Event "Early-Titled-Tuesday-Blitz-February-06-2024"]
[Site "Chess.com"]
[Date "2024.02.06"]
[Round "9"]
[White "Cambek64"]
[Black "BeautiFullMindChess"]
[Result "0-1"]
[WhiteElo "2499"]
[BlackElo "2309"]
[TimeControl "180+1"]
[EndTime "9:43:24 PST"]
[Termination "BeautiFullMindChess won by checkmate"]

1. e4 {[%clk 0:02:49.2]} 1... d5 {[%clk 0:02:55.2]} 2. Nc3 {[%clk 0:02:46.5]}
2... dxe4 {[%clk 0:02:53.5]} 3. Nxe4 {[%clk 0:02:47.2]} 3... Nf6 {[%clk
0:02:54.3]} 4. Ng3 {[%clk 0:02:46.3]} 4... h5 {[%clk 0:02:53.7]} 5. h3 {[%clk
0:02:46.5]} 5... h4 {[%clk 0:02:53.1]} 6. N3e2 {[%clk 0:02:47]} 6... e5 {[%clk
0:02:49.6]} 7. d3 {[%clk 0:02:42.9]} 7... Bc5 {[%clk 0:02:44]} 8. Nc3 {[%clk
0:02:37.4]} 8... Nc6 {[%clk 0:02:39.5]} 9. Nf3 {[%clk 0:02:35.7]} 9... Bf5
{[%clk 0:02:08.7]} 10. Bg5 {[%clk 0:02:29]} 10... Qd7 {[%clk 0:01:52]} 11. Be2
{[%clk 0:02:04.9]} 11... O-O-O {[%clk 0:01:31.9]} 12. O-O {[%clk 0:02:02]} 12...
Nd4 {[%clk 0:01:13]} 13. Nxe5 {[%clk 0:01:33.5]} 13... Qe6 {[%clk 0:01:12.8]}
14. Ng4 {[%clk 0:01:30.9]} 14... Kb8 {[%clk 0:00:56.4]} 15. Re1 {[%clk
0:01:29.5]} 15... Rde8 {[%clk 0:00:44.3]} 16. Ne3 {[%clk 0:01:20.6]} 16... Bxh3
{[%clk 0:00:35.7]} 17. gxh3 {[%clk 0:01:19.1]} 17... Qxh3 {[%clk 0:00:36.6]} 18.
Ne4 {[%clk 0:00:49.2]} 18... Nxe4 {[%clk 0:00:16.8]} 19. dxe4 {[%clk 0:00:47.3]}
19... Bd6 {[%clk 0:00:16.2]} 20. Bg4 {[%clk 0:00:38]} 20... Qh2+ {[%clk
0:00:14]} 21. Kf1 {[%clk 0:00:37.9]} 21... Qh1# {[%clk 0:00:14.5]} 0-1

[Event "Early-Titled-Tuesday-Blitz-February-06-2024"]
[Site "Chess.com"]
[Date "2024.02.06"]
[Round "9"]
[White "Harsha_Bharathakoti"]
[Black "Som2310"]
[Result "1-0"]
[WhiteElo "2939"]
[BlackElo "2804"]
[TimeControl "180+1"]
[EndTime "9:43:25 PST"]
[Termination "Harsha_Bharathakoti won by resignation"]

1. Nf3 {[%clk 0:03:00.9]} 1... c5 {[%clk 0:02:59.3]} 2. c4 {[%clk 0:02:59.1]}
2... Nf6 {[%clk 0:02:58.9]} 3. Nc3 {[%clk 0:02:59.2]} 3... d5 {[%clk 0:02:59.3]}
4. cxd5 {[%clk 0:02:55.5]} 4... Nxd5 {[%clk 0:02:59.4]} 5. e3 {[%clk 0:02:52.7]}
5... e6 {[%clk 0:02:59.3]} 6. Nxd5 {[%clk 0:02:45.4]} 6... Qxd5 {[%clk
0:02:58.4]} 7. b3 {[%clk 0:02:45.6]} 7... Nc6 {[%clk 0:02:55]} 8. Bb2 {[%clk
0:02:45.7]} 8... e5 {[%clk 0:02:49.5]} 9. Bc4 {[%clk 0:02:35.6]} 9... Qd6 {[%clk
0:02:49.2]} 10. O-O {[%clk 0:02:36.1]} 10... Be7 {[%clk 0:02:48]} 11. Bb5 {[%clk
0:02:16.7]} 11... O-O {[%clk 0:02:35.1]} 12. Bxc6 {[%clk 0:02:15.4]} 12... Qxc6
{[%clk 0:02:35.4]} 13. Nxe5 {[%clk 0:02:14.7]} 13... Qd5 {[%clk 0:02:29.9]} 14.
d4 {[%clk 0:02:13.8]} 14... Be6 {[%clk 0:02:23.7]} 15. dxc5 {[%clk 0:02:04.5]}
15... Rfd8 {[%clk 0:02:12.1]} 16. Qxd5 {[%clk 0:02:02.7]} 16... Rxd5 {[%clk
0:02:11.9]} 17. c6 {[%clk 0:01:53.7]} 17... bxc6 {[%clk 0:02:11.5]} 18. Nxc6
{[%clk 0:01:53.3]} 18... Bf8 {[%clk 0:02:07.9]} 19. Nd4 {[%clk 0:01:52.9]} 19...
Bd7 {[%clk 0:02:06.9]} 20. Rfd1 {[%clk 0:01:47.9]} 20... Rc8 {[%clk 0:02:04.7]}
21. Rac1 {[%clk 0:01:47.5]} 21... Rcc5 {[%clk 0:02:00.6]} 22. Rxc5 {[%clk
0:01:46]} 22... Bxc5 {[%clk 0:02:00.3]} 23. Rc1 {[%clk 0:01:45.4]} 23... a6
{[%clk 0:01:51]} 24. Nf3 {[%clk 0:00:53.7]} 24... Bf8 {[%clk 0:01:43.2]} 25. Bd4
{[%clk 0:00:44]} 25... a5 {[%clk 0:01:40.5]} 26. Ne5 {[%clk 0:00:42.2]} 26...
Be6 {[%clk 0:01:38.9]} 27. Nc4 {[%clk 0:00:39.7]} 27... Rb5 {[%clk 0:01:36.1]}
28. Nb2 {[%clk 0:00:33]} 28... Ba3 {[%clk 0:01:33.7]} 29. Rc2 {[%clk 0:00:26.4]}
29... f6 {[%clk 0:01:25.2]} 30. Na4 {[%clk 0:00:24.7]} 30... Be7 {[%clk
0:01:23.8]} 31. h3 {[%clk 0:00:25.3]} 31... Kf7 {[%clk 0:01:23.7]} 32. Bc5
{[%clk 0:00:25.9]} 32... Bd8 {[%clk 0:01:21.7]} 33. Rd2 {[%clk 0:00:26.6]} 33...
Ke8 {[%clk 0:01:21.3]} 34. Bd4 {[%clk 0:00:26]} 34... Be7 {[%clk 0:01:20.2]} 35.
Rc2 {[%clk 0:00:26.7]} 35... h5 {[%clk 0:01:18.2]} 36. Kf1 {[%clk 0:00:26.5]}
36... h4 {[%clk 0:01:17.9]} 37. Bc5 {[%clk 0:00:26.6]} 37... Bd8 {[%clk
0:01:17.7]} 38. Bd4 {[%clk 0:00:27.4]} 38... Be7 {[%clk 0:01:17.6]} 39. Nc5
{[%clk 0:00:28.1]} 39... Bd5 {[%clk 0:01:16.7]} 40. f3 {[%clk 0:00:26.3]} 40...
Rb8 {[%clk 0:01:10]} 41. Na6 {[%clk 0:00:26.3]} 41... Rb5 {[%clk 0:01:08]} 42.
Nc7+ {[%clk 0:00:26.6]} 42... Kf7 {[%clk 0:01:08.5]} 43. Nxb5 {[%clk 0:00:27.5]}
1-0

[Event "Early-Titled-Tuesday-Blitz-February-06-2024"]
[Site "Chess.com"]
[Date "2024.02.06"]
[Round "9"]
[White "FredddieCroderg"]
[Black "Herzog2012"]
[Result "1-0"]
[WhiteElo "2383"]
[BlackElo "2514"]
[TimeControl "180+1"]
[EndTime "9:43:25 PST"]
[Termination "FredddieCroderg won by resignation"]

1. e4 {[%clk 0:02:57.3]} 1... c5 {[%clk 0:02:59.6]} 2. c3 {[%clk 0:02:56]} 2...
Nf6 {[%clk 0:02:58.3]} 3. e5 {[%clk 0:02:51]} 3... Nd5 {[%clk 0:02:58.3]} 4. d4
{[%clk 0:02:49.9]} 4... cxd4 {[%clk 0:02:58]} 5. Nf3 {[%clk 0:02:50]} 5... Nc6
{[%clk 0:02:57.5]} 6. cxd4 {[%clk 0:02:48.5]} 6... d6 {[%clk 0:02:57.8]} 7. Nc3
{[%clk 0:02:47.7]} 7... dxe5 {[%clk 0:02:55.3]} 8. dxe5 {[%clk 0:02:45.8]} 8...
Nxc3 {[%clk 0:02:54.7]} 9. Qxd8+ {[%clk 0:02:43.8]} 9... Kxd8 {[%clk 0:02:43.2]}
10. bxc3 {[%clk 0:02:44.7]} 10... Bg4 {[%clk 0:02:41.4]} 11. Bf4 {[%clk
0:02:43.8]} 11... Bxf3 {[%clk 0:02:38.9]} 12. gxf3 {[%clk 0:02:43]} 12... e6
{[%clk 0:02:36.7]} 13. Rg1 {[%clk 0:02:39.8]} 13... g6 {[%clk 0:02:33.4]} 14.
Bg5+ {[%clk 0:02:38.5]} 14... Be7 {[%clk 0:02:31.5]} 15. Bxe7+ {[%clk
0:02:36.8]} 15... Ke8 {[%clk 0:02:30.6]} 16. f4 {[%clk 0:02:37.3]} 16... Nxe7
{[%clk 0:02:26.6]} 17. Bg2 {[%clk 0:02:33.2]} 17... Rb8 {[%clk 0:02:21.6]} 18.
Rb1 {[%clk 0:02:31.2]} 18... b6 {[%clk 0:02:20.3]} 19. a4 {[%clk 0:02:30.8]}
19... Kd7 {[%clk 0:02:16.4]} 20. Ke2 {[%clk 0:02:27.1]} 20... Kc7 {[%clk
0:02:14.8]} 21. Rgd1 {[%clk 0:02:25.4]} 21... Rhd8 {[%clk 0:02:14.4]} 22. a5
{[%clk 0:02:25.1]} 22... bxa5 {[%clk 0:02:08.4]} 23. Rxb8 {[%clk 0:02:17]} 23...
Rxb8 {[%clk 0:02:02.4]} 24. Ra1 {[%clk 0:02:09.2]} 24... Rb5 {[%clk 0:02:01.2]}
25. Kd3 {[%clk 0:02:05.1]} 25... Kb6 {[%clk 0:01:56.4]} 26. Ra2 {[%clk
0:02:01.9]} 26... Rb1 {[%clk 0:01:41]} 27. c4 {[%clk 0:01:57.8]} 27... Nf5
{[%clk 0:01:09.3]} 28. Kc2 {[%clk 0:01:38]} 28... Rb4 {[%clk 0:00:32.7]} 29. Kc3
{[%clk 0:01:37.3]} 29... Ng7 {[%clk 0:00:26.8]} 30. c5+ {[%clk 0:01:25.6]} 30...
Kxc5 {[%clk 0:00:05.2]} 31. Rxa5+ {[%clk 0:01:24.4]} 31... Rb5 {[%clk 0:00:05]}
32. Rxa7 {[%clk 0:01:24.3]} 32... Nh5 {[%clk 0:00:03.9]} 33. Rxf7 {[%clk
0:01:22.6]} 33... Rb1 {[%clk 0:00:03.2]} 34. Rc7+ {[%clk 0:01:19.2]} 1-0